Cogmind - Beta 15 @@@ ROGUE MODE // 2025.05.06 @ 12:22:11 Player: Domo Result: Destroyed by BK-ORM(R) with Subdweller Machine Gun Performance ------------- Evolutions (0) 0 Regions Visited (2) 400 Robots Destroyed (14) 70 Value Destroyed (326) 326 Prototype IDs (0) 0 Alien Tech Used (0) 0 Bonus (0) 0 TOTAL SCORE: 796 Bonus ------- None Cogmind --------- Core Integrity 0/250 Matter 300/300 Energy 100/100 System Corruption 0% Temperature Cool (6) Movement Core (700) Ox13 Location -10/Subcaves Parts ------- > --- POWER (1) -------- (None) > --- PROPULSION (2) --- (None) > --- UTILITY (2) ------ High-capacity Storage Unit > --- WEAPON (2) ------- (None) > --- INVENTORY (20) --- Improved Ion Engine Improved Ion Engine Improved Ion Engine Sensor Array Core Shielding Scrap Shield Heavy EM Pulse Gun Improved Medium Laser Peak State ------------ > --- POWER ------------ Improved Ion Engine > --- PROPULSION ------- Light Treads Light Treads > --- UTILITY ---------- High-capacity Storage Unit Improved Terrain Scanner > --- WEAPON ----------- Heavy EM Pulse Gun Light Assault Rifle > --- INVENTORY -------- Improved Ion Engine Improved Ion Engine Improved Ion Engine Sensor Array Core Shielding Heavy EM Pulse Gun Improved Medium Laser [Rating: 12] Favorites ----------- Power Improved Ion Engine Engine Improved Ion Engine Propulsion Light Treads Treads Light Treads Utility Improved Terrain Scanner Device Improved Terrain Scanner Storage High-capacity Storage Unit Weapon Light Assault Rifle Energy Gun Heavy EM Pulse Gun Ballistic Gun Light Assault Rifle Build | -11 -10 -10 ------- Run | Yrd Mat Sub Slots Evolved . | . . . Power . | . . . Propulsion . | . . . Utility . | . . . Weapon . | . . . Parts Attached 10 | 7 3 . Power 2 | 1 1 . Engine 2 | 1 1 . Core . | . . . Reactor . | . . . Propulsion 2 | 2 . . Treads 2 | 2 . . Leg . | . . . Wheel . | . . . Hover . | . . . Flight . | . . . Utility 3 | 2 1 . Device 1 | 1 . . Storage 2 | 1 1 . Processor . | . . . Hackware . | . . . Protection . | . . . Artifact . | . . . Weapon 3 | 2 1 . Energy Gun 1 | . 1 . Energy Cannon . | . . . Ballistic Gun 2 | 2 . . Ballistic Cannon . | . . . Launcher . | . . . Special Weapon . | . . . Impact Weapon . | . . . Slashing Weapon . | . . . Piercing Weapon . | . . . Special Melee Weapon . | . . . Unidentified Prototypes . | . . . Parts Lost 7 | . 3 4 Power 1 | . . 1 Propulsion 2 | . 1 1 Utility 1 | . . 1 Weapon 3 | . 2 1 Highest Loss Streak 3 | . 2 3 To Critical Strikes . | . . . Average Backups 7 | 1 7 7 Power 2 | . 2 3 Propulsion . | . . . Utility 2 | . 1 2 Weapon 2 | . 2 2 Tool/Special . | . . . Unused Backups 10 | . 2 8 Power 4 | . 1 3 Propulsion . | . . . Utility 3 | . . 3 Weapon 3 | . 1 2 Tool/Special . | . . . Average Slot Usage (%) 86 | . 99 56 Engine 14 | . 14 14 Treads 19 | . 27 . Device 13 | . 14 13 Storage 14 | . 14 14 Energy Gun 8 | . 7 13 Ballistic Gun 14 | . 20 . Peak Build Rating 12 | 9 12 10 Average Rating 10 | 5 11 8 On Entrance 6 | . 9 10 Naked Turns . | . . . Heaviest Build 52 | 11 52 51 Greatest Support 40 | 40 40 3 Greatest Overweight (x) 16 | . 2 16 Average Overweight (x) 2 | . . 15 Largest Inventory Capacity 20 | 8 20 20 Average Capacity 17 | 7 17 20 Most Carried 10 | 2 8 10 Average Carried 7 | 1 7 8 Final Capacity 20 | 8 20 20 Final Carried 9 | 2 7 9 Class Distribution -------------------- 100% | Mutant Dominant Class ---------------- Mutant | -10/Materials Mutant | -10/Subcaves Resources | -11 -10 -10 ----------- Run | Yrd Mat Sub Matter Collected 372 | 276 96 . Remotely . | . . . Salvage Created 504 | 116 388 . Parts 29 | 5 24 . Haulers Intercepted . | . . . Recyclers Shooed . | . . . Parts Field Recycled . | . . . Retrieved Matter . | . . . Parts Self-Destructed 5 | . . 5 Prevented . | . . . Kills | -11 -10 -10 ------- Run | Yrd Mat Sub Combat Hostiles Destroyed 10 | . 10 . Guns 10 | . 10 . Classes Destroyed 6 | 2 4 . Tunneler 1 | 1 . . Recycler 1 | 1 . . Operator 1 | . 1 . Watcher 1 | . 1 . Swarmer 3 | . 3 . Grunt 7 | . 7 . Best Kill Streak 3 | 2 3 . Combat Bots Only 3 | . 3 . Max Kills in Single Turn 1 | 1 1 . Gunslinging . | . . . Exploded . | . . . Melee . | . . . Uniques/NPCs Destroyed . | . . . Combat | -11 -10 -10 -------- Run | Yrd Mat Sub Hostile Shots Fired 126 | . 92 34 Missed 41 | . 27 14 Hits 85 | . 65 20 Projectile 85 | . 65 20 Critical Strikes 1 | . 1 . Damage Taken 1042 | . 696 346 Core 258 | . 122 136 Absorbed by Shields . | . . . Core Remaining (%) 100 | 100 . . Volleys Fired 64 | 3 52 9 Largest 2 | 2 2 1 Hottest 65 | 40 65 45 Shots Fired 110 | 6 95 9 Gun 110 | 6 95 9 Cannon . | . . . Launcher . | . . . Special . | . . . Kinetic 81 | 6 75 . Thermal . | . . . Explosive . | . . . Electromagnetic 29 | . 20 9 Robot Hit Streak 7 | 3 7 4 Robot Miss Streak 6 | 1 4 6 Penetration Max . | . . . Secondary Targets 2 | . 2 . Max Gunslinging Chain 1 | . 1 . Shots Hit Robots 65 | 5 57 3 Core Hits 31 | 4 27 . Critical Kills . | . . . Critical Parts Destroyed . | . . . Critical Strikes 2 | . 2 . Corrupt 2 | . 2 . Melee Attacks . | . . . Impact . | . . . Slashing . | . . . Piercing . | . . . Sneak Attacks . | . . . Combat Hostiles . | . . . Follow-up Attacks . | . . . Damage Inflicted 628 | 43 544 41 Guns 628 | 43 544 41 Cannons . | . . . Explosions . | . . . Melee . | . . . Ramming . | . . . Kinetic 437 | 43 394 . Thermal . | . . . Explosive . | . . . Electromagnetic 191 | . 150 41 Impact . | . . . Slashing . | . . . Piercing . | . . . Highest Corruption . | . . . Average Corruption . | . . . Corruption Purged . | . . . Corruption Blocked . | . . . Overload Shots . | . . . Overflow Damage . | . . . Projectiles . | . . . Explosions . | . . . Melee . | . . . Knockbacks . | . . . Impact . | . . . Kinetic . | . . . Secondary . | . . . Self-Inflicted Damage . | . . . Shots . | . . . Rammed 1 | . 1 . Targets Rammed 1 | . 1 . Kicked . | . . . Crushed . | . . . Highest Temperature 70 | . 70 . Average Temperature 17 | . 17 . Received Heat Transfer 339 | . 297 42 Siege Activations . | . . . Martial Activations . | . . . Shielding Activations . | . . . Robots Disrupted . | . . . Combat Hostiles . | . . . Robots Corrupted . | . . . Combat Hostiles . | . . . Parts Fried . | . . . Impact Corruptions . | . . . Robots Melted . | . . . Combat Hostiles . | . . . Parts Melted . | . . . Heat Transferred . | . . . Parts Sabotaged . | . . . Parts Stolen . | . . . Parts Stripped . | . . . Power Chain Reactions . | . . . Alert | -11 -10 -10 ------- Run | Yrd Mat Sub Maximum Alert Level . | . . . Low Security (%) 100 | 100 100 . Level 1 . | . . . Level 2 . | . . . Level 3 . | . . . Level 4 . | . . . Level 5 . | . . . High Security . | . . . Max Security . | . . . Peak Influence 67 | 10 67 . Initial . | . . . Average 6 | 1 6 . Influence Increases 287 | 10 277 . Destroy 0b10 Robot/C 200 | . 200 . Destroy 0b10 Robot/NC 20 | 10 10 . Destroy Leader 32 | . 32 . Successful Hack 20 | . 20 . Lose Combat Pursuer 15 | . 15 . Influence Decreases 287 | 10 213 64 Entered New Map 32 | . . 32 Time Decay 235 | 10 203 22 Lost Part 20 | . 10 10 Squads Dispatched 1 | . 1 . Investigation . | . . . Extermination . | . . . Reinforcement 1 | . 1 . Assault . | . . . Garrison . | . . . Intercept . | . . . Searches Triggered . | . . . Construction Impeded . | . . . Haulers Reinforced . | . . . Active Scanning Responses . | . . . Cargo Convoy Interrupts . | . . . Stealth | -11 -10 -10 --------- Run | Yrd Mat Sub Distress Signals 1 | . 1 . Communications Jammed . | . . . Distress Signals . | . . . Times Spotted 31 | . 20 11 Peak Tracking Total 6 | . 4 6 Tactical Retreats 1 | . 1 . Traps | -11 -10 -10 ------- Run | Yrd Mat Sub Traps Triggered . | . . . Indirectly . | . . . Trap Hack Attempts . | . . . Triggered . | . . . Disarmed . | . . . Reprogrammed . | . . . Reused . | . . . Traps Extracted . | . . . Installed . | . . . Triggered . | . . . Machines | -11 -10 -10 ---------- Run | Yrd Mat Sub Machines Disabled . | . . . Max in Single Turn . | . . . Machines Repaired . | . . . Machines Dismantled . | . . . Machines Sabotaged . | . . . Overloaded Fab Kills . | . . . Hacking | -11 -10 -10 --------- Run | Yrd Mat Sub Machines Accessed 5 | . 5 . Terminals 5 | . 5 . Fabricators . | . . . Repair Stations . | . . . Recycling Units . | . . . Scanalyzers . | . . . Garrison Access . | . . . Total Hacks 7 | . 7 . Successful 3 | . 3 . Failed 4 | . 4 . Catastrophic 3 | . 3 . Database Lockouts . | . . . Manual 5 | . 5 . Terminals 7 | . 7 . Fabricators . | . . . Repair Stations . | . . . Recycling Units . | . . . Scanalyzers . | . . . Garrison Access . | . . . Terminal Hacks 3 | . 3 . Record 2 | . 2 . Scanalyzer Index 1 | . 1 . Fabricator Hacks . | . . . Repair Station Hacks . | . . . Recycling Unit Hacks . | . . . Scanalyzer . | . . . Garrison Access Hacks . | . . . Unauthorized Hacks . | . . . Terminals . | . . . Fabricators . | . . . Repair Stations . | . . . Recycling Units . | . . . Scanalyzers . | . . . Garrison Access . | . . . Data Cores Recovered . | . . . Used . | . . . Hacking Detections 1 | . 1 . Full Trace Events 1 | . 1 . Feedback Events . | . . . Feedback Blocked . | . . . Robot Schematics Acquired . | . . . Robots Built . | . . . Authchips . | . . . Time . | . . . Total Robot Build Rating . | . . . Part Schematics Acquired . | . . . Parts Built . | . . . Authchips . | . . . Time . | . . . Total Part Build Rating . | . . . Parts Repaired . | . . . Time . | . . . Parts Recycled . | . . . Recycled Matter . | . . . Retrieved Matter . | . . . Retrieved Components . | . . . Parts Scanalyzed . | . . . Part Schematics Acquired . | . . . Parts Damaged . | . . . Bothacking | -11 -10 -10 ------------ Run | Yrd Mat Sub Used RIF Installer . | . . . Robots Hacked . | . . . Non-combat . | . . . Combat . | . . . Robot Hacks Applied . | . . . Relay Couplers Released . | . . . Fabnet Peak Effective % . | . . . Robots Rewired . | . . . Allies Hacked . | . . . Hacks Repelled . | . . . Allies | -11 -10 -10 -------- Run | Yrd Mat Sub Total Allies . | . . . Largest Group . | . . . Highest-Rated Group . | . . . Highest-Rated Ally . | . . . Total Orders . | . . . Ally Attacks . | . . . Total Damage . | . . . Kills . | . . . Allies Corrupted . | . . . Allies Melted . | . . . Intel | -11 -10 -10 ------- Run | Yrd Mat Sub Active Infowar (turns) 2299 | 33 1638 628 Terrain 2299 | 33 1638 628 Robot Analysis Total . | . . . Derelict Logs Recovered . | . . . Drone Launches . | . . . Drone Recoveries . | . . . Exploration | -11 -10 -10 ------------- Run | Yrd Mat Sub Turns Passed 2366 | 89 1638 639 Spaces Moved 744 | 46 625 73 Core 78 | 5 . 73 Treads 666 | 41 625 . Legs . | . . . Wheels . | . . . Hover . | . . . Flight . | . . . Fastest Speed 50 | 50 160 700 Average Speed 277 | 148 220 845 Slowest Speed 850 | 160 320 850 Overloaded Moves . | . . . Propulsion Burnouts . | . . . Robots Hopped . | . . . Potential Cave-ins . | . . . Cave-ins Triggered . | . . . Exploration Rate (%) 25 | 4 67 6 Regions Visited 2 Branch Regions 1 Pre-discovered Areas . | . . . Known Exits Taken . | . . . Unknown Exits Taken 2 | 1 1 . Scrap Searched . | . . . Spaces Dug . | . . . Terrain Destroyed . | . . . Melee . | . . . Projectile . | . . . AOE . | . . . Terrain Rammed . | . . . Walls Destroyed . | . . . Machines Disabled . | . . . Actions | -11 -10 -10 --------- Run | Yrd Mat Sub Total 956 | 59 809 88 Wait 121 | 1 117 3 Move 742 | 45 624 73 Hop . | . . . Pick Up 13 | 3 8 2 Fast Attach 6 | 6 . . Attach 2 | 1 1 . Detach . | . . . Swap 2 | . 2 . Drop 5 | . 4 1 Fire 64 | 3 52 9 Melee . | . . . Ram . | . . . Kick . | . . . Crush 1 | . 1 . Escape Stasis . | . . . Rewire . | . . . Trap . | . . . Miscellaneous . | . . . Route ------- -11/Scrapyard -10/Materials (discovered 4 exits: [*Mat x3] / [*Sub]) -10/Subcaves (discovered 1 exit: [Mat]) History --------- Turn | Location | Event 29 | -11/Scrapyard | Discovered new exit (range 15) 90 | -11/Scrapyard | Entered Materials 307 | -10/Materials | Build established: Mutant 453 | -10/Materials | Discovered new exit (range 9) 688 | -10/Materials | Discovered new exit (range 12) 1456 | -10/Materials | Discovered new exit (range 16) 1477 | -10/Materials | Discovered new exit (range 8) 1728 | -10/Materials | Entered Subcaves 1729 | -10/Subcaves | Approached by a straggling Scientist 2057 | -10/Subcaves | Core integrity fell below 50% 2287 | -10/Subcaves | Discovered new exit (range 15) 2322 | -10/Subcaves | Ambushed by swarm of Subdwellers 2333 | -10/Subcaves | Shifting Twisted Machinery released Sub. Monowheel 2366 | -10/Subcaves | Core integrity fell below 20% 2367 | -10/Subcaves | Destroyed by BK-ORM(R) with Subdweller Machine Gun Last Messages --------------- Sub. Monowheel falls loose from the Twisted Machinery. 4A-LM3(R) suffers critical hit (Burn). 4A-LM3(R) destroyed. BK-ORM(R) suffers critical hit (Destroy). 2E-Z9T(h) destroyed. JO-EOR(c): "I think it's somewhere northwest of here" Z5-3Z8(g) destroyed. SY-DJP(R) affixes Scrap Shield Fragment to Scrap Shield. UH-7SV(g) suffers critical hit (Destroy). Subatomizers dissect the Sub. Optics. KG-M6A(R) destroyed. UH-7SV(g) destroyed. Imp. Terrain Scanner destroyed. X3-013(g) suffers critical hit (Destroy). X3-013(g) destroyed. Imp. Ion Engine destroyed. Subatomizers dissect the Sub. Optics. Map ----- +----------------------------------------------------+ | ?????????????????????????????????????????????????? | | ?????????????????????????????????????????????????? | | ?????????????????????????????????????????????????? | | ?????????????????????????????????????????????????? | | ?????????????????????????????????????????????????? | | ?????????????????????????????????????????????????? | | ?????????????????????????????????????????????????? | | ?????????????????????????????????????????????????? | | ?????????????????????????????????????????????????? | | ?????????????????????????????????????????????????? | | ?????????????????????????????????????????????????? | | ?????????????????????#???????????????????????????? | | ?????????????????????????????? ?????#????????????? | | ??????????????????????????????????? ?????????????? | | ?????????????????????????????? ?? ? ????????????? | | ??????????????????????? ?????????? ""????????????? | | ?????????????? ?????????#????? ?? ""????????????? | | ???????????????? ??? ????#??????? """#??????????? | | ?????????????? ????????###??????? ="""??#????????? | | ????????????? ???????# ##????? ###???????? | | ??????????#?? ????????## #?# ?? % ????????? | | ??""???????##? ?#???#?## #??"? ]%* "??#??????? | | ? ????????????? ????#?## ?#? ? %" #???????????? | | #"???#?? ??????? ????# #####=%"[ ""##??????????? | | ###?#? ?""???# ?????## ###=#%![&"" "#??????????? | | ##???"?"???#" ????### @ !R!!%#???#???????????? | | ""###?????#??" ?????# #!!R=###? ?????????????? | | ""###??#####? ????## ## %R##?????????????????? | | "" ??#??#??#?????# #### #??????????????????? | | "" #??????#??#??#### c ##?? #?????????????????? | | " ##??????##??### [##?? %## ??????#???"????? | | #?##??#??##???# =%##?## ?????#???????????? | | #???#??#??###?## *## # ????????????????? | | ##????########## ???????????????? | | ###??## # "; ## ## # ??????????????? | | ??#### " #?####?## ## ?????#???????? | | ??# %%%[ ##????#?###?? ##????????????? | | ### "###& #???##???? #? ???????????? | | # #### ??#?? ???????????????? | | & ##?###